[Event "3rd FIDE WCCC Rapid G10 2019"]
[Site "Minsk"]
[Date "2019.08.16"]
[Round "1.1"]
[White "Shukhman, Anna"]
[Black "Sialitskaya, Vasilina"]
[Result "1-0"]
[ECO "C68"]
[WhiteElo "1806"]
[BlackElo "1159"]
[Annotator "NA"]
[PlyCount "65"]
[EventDate "2019.08.16"]
[EventType "swiss"]
[EventCountry "BLR"]
[SourceTitle "playchess.com"]
[Source "ChessBase"]
[SourceQuality "1"]
[TimeControl "600+5"]

1. e4 {[%emt 0:00:00]} e5 {[%emt 0:00:00]} 2. Nf3 {[%emt 0:00:00]} Nc6 {[%emt 0:00:00]} 3. Bb5 {[%emt 0:00:02]} a6 {[%emt 0:00:01]} 4. Bxc6 {[%emt 0:00:01]} dxc6 {[%emt 0:00:03]} 5. O-O {[%emt 0:00:03]} Bd6 {[%emt 0:00:03]} 6. d4 {[%emt 0:00:01]} exd4 {[%emt 0:00:12]} 7. Qxd4 {[%emt 0:00:03]} f6 {[%emt 0:01:04]} 8. Nbd2 {[%emt 0:00:03]} Ne7 {[%emt 0:00:17]} 9. Nc4 {[%emt 0:00:05]} O-O {[%emt 0:00:23]} 10. Be3 {[%emt 0:00:39]} Be6 {[%emt 0:01:02]} 11. Qc3 {[%emt 0:01:46]} Ng6 {[%emt 0:02:04]} 12. Rad1 {[%emt 0:00:33]} Qe7 {[%emt 0:00:46]} 13. Nd4 {[%emt 0:00:44]} Ne5 {[%emt 0:01:32]} 14. Nf5 {[%emt 0:00:44]} Bxf5 {[%emt 0:00:48]} 15. exf5 {[%emt 0:00:03]} Bb4 {[%emt 0:00:55]} 16. Qb3 {[%emt 0:00:21]} Kh8 {[%emt 0:00:17]} 17. c3 {[%emt 0:01:09]} Nxc4 {[%emt 0:00:36]} 18. Qxc4 {[%emt 0:00:10]} Bd6 {[%emt 0:00:05]} 19. Bd4 {[%emt 0:01:27]} Rfe8 {[%emt 0:00:20]} 20. Qb3 {[%emt 0:00:11]} c5 {[%emt 0:00:09]} 21. Be3 {[%emt 0:00:20]} Qe5 {[%emt 0:00:08]} 22. g3 {[%emt 0:00:02]} Qxf5 {[%emt 0:00:14]} 23. Qxb7 {[%emt 0:00:15]} Rab8 {[%emt 0:00:12]} 24. Qc6 {[%emt 0:00:13]} Re6 {[%emt 0:00:11]} 25. Qd7 {[%emt 0:00:51]} Re5 {[%emt 0:00:18]} 26. Qa4 {[%emt 0:00:13]} Qh5 {[%emt 0:00:07]} 27. Bf4 {[%emt 0:00:16]} Rf5 {[%emt 0:00:18]} 28. Bxd6 {[%emt 0:00:14]} cxd6 {[%emt 0:00:02]} 29. Rxd6 {[%emt 0:00:15]} Qh6 {[%emt 0:00:11]} 30. Rfd1 {[%emt 0:00:04]} Kg8 {[%emt 0:00:05]} 31. Qc4+ {[%emt 0:00:04]} Kf8 {[%emt 0:00:02]} 32. Qe6 {[%emt 0:00:06]} Re8 {[%emt 0:00:09]} 33. Qxf5 1-0

[Event "3rd FIDE WCCC Rapid G10 2019"]
[Site "Minsk"]
[Date "2019.08.16"]
[Round "1.2"]
[White "Bendik, Margarita"]
[Black "Basova, Polina"]
[Result "0-1"]
[ECO "B31"]
[WhiteElo "1188"]
[BlackElo "1610"]
[Annotator "NA"]
[PlyCount "140"]
[EventDate "2019.08.16"]
[EventType "swiss"]
[EventCountry "BLR"]
[SourceTitle "playchess.com"]
[Source "ChessBase"]
[SourceQuality "1"]
[TimeControl "600+5"]

1. e4 {[%emt 0:00:00]} c5 {[%emt 0:00:00]} 2. Nf3 {[%emt 0:00:00]} Nc6 {[%emt 0:00:00]} 3. Bb5 {[%emt 0:00:00]} g6 {[%emt 0:00:02]} 4. Bxc6 {[%emt 0:00:02]} dxc6 {[%emt 0:00:04]} 5. d3 {[%emt 0:00:05]} Bg7 {[%emt 0:00:03]} 6. Nc3 {[%emt 0:00:03]} Bg4 {[%emt 0:00:13]} 7. h3 {[%emt 0:00:12]} Bxf3 {[%emt 0:00:02]} 8. Qxf3 {[%emt 0:00:02]} Nf6 {[%emt 0:00:12]} 9. Bd2 {[%emt 0:00:11]} O-O {[%emt 0:00:57]} 10. O-O {[%emt 0:00:04]} Re8 {[%emt 0:00:22]} 11. Rfe1 {[%emt 0:00:14]} c4 {[%emt 0:00:08]} 12. Re3 {[%emt 0:01:15]} Qb6 {[%emt 0:00:42]} 13. Rb1 {[%emt 0:00:37]} cxd3 {[%emt 0:00:12]} 14. Rxd3 {[%emt 0:00:24]} Red8 {[%emt 0:00:14]} 15. Rxd8+ {[%emt 0:00:41]} Rxd8 {[%emt 0:00:03]} 16. Be3 {[%emt 0:00:01]} Qc7 {[%emt 0:01:22]} 17. Qf4 {[%emt 0:00:38]} Qxf4 {[%emt 0:00:29]} 18. Bxf4 {[%emt 0:00:02]} Nh5 {[%emt 0:00:06]} 19. Be3 {[%emt 0:00:11]} b6 {[%emt 0:00:16]} 20. Ne2 {[%emt 0:00:16]} Nf6 {[%emt 0:00:14]} 21. f3 {[%emt 0:00:05]} Ne8 {[%emt 0:00:22]} 22. c3 {[%emt 0:00:39]} c5 {[%emt 0:00:17]} 23. Nf4 {[%emt 0:00:20]} Bh6 {[%emt 0:00:38]} 24. Kf2 {[%emt 0:00:16]} Nf6 {[%emt 0:00:34]} 25. Re1 {[%emt 0:00:57]} c4 {[%emt 0:00:20]} 26. Re2 {[%emt 0:00:22]} e5 {[%emt 0:00:12]} 27. Nd5 {[%emt 0:00:08]} Bxe3+ {[%emt 0:00:10]} 28. Nxe3 {[%emt 0:00:02]} b5 {[%emt 0:00:20]} 29. a4 {[%emt 0:00:25]} a6 {[%emt 0:00:26]} 30. axb5 {[%emt 0:00:01]} axb5 {[%emt 0:00:02]} 31. Nc2 {[%emt 0:00:06]} Nh5 {[%emt 0:00:09]} 32. g3 {[%emt 0:00:09]} Kf8 {[%emt 0:00:55]} 33. Na3 {[%emt 0:00:23]} Rb8 {[%emt 0:00:27]} 34. Rd2 {[%emt 0:00:01]} Nf6 {[%emt 0:00:12]} 35. Nc2 {[%emt 0:00:51]} Ke8 {[%emt 0:00:26]} 36. Nb4 {[%emt 0:00:28]} Rb6 {[%emt 0:00:26]} 37. Nd5 {[%emt 0:00:49]} Nxd5 {[%emt 0:00:06]} 38. Rxd5 {[%emt 0:00:01]} f6 {[%emt 0:00:02]} 39. Ke3 {[%emt 0:00:04]} Ke7 {[%emt 0:00:09]} 40. Rc5 {[%emt 0:00:15]} Kd7 {[%emt 0:00:15]} 41. f4 {[%emt 0:00:12]} exf4+ {[%emt 0:00:09]} 42. gxf4 {[%emt 0:00:02]} Rb8 {[%emt 0:00:14]} 43. Kd4 {[%emt 0:00:41]} h6 {[%emt 0:00:15]} 44. Rd5+ {[%emt 0:00:12]} Kc6 {[%emt 0:00:08]} 45. Rc5+ {[%emt 0:00:19]} Kb6 {[%emt 0:00:03]} 46. Rd5 {[%emt 0:00:12]} Kc6 {[%emt 0:00:03]} 47. e5 {[%emt 0:00:28]} fxe5+ {[%emt 0:00:03]} 48. fxe5 {[%emt 0:00:02]} Kc7 {[%emt 0:00:21]} 49. Rd6 {[%emt 0:00:03]} Rg8 {[%emt 0:00:07]} 50. Kc5 {[%emt 0:00:03]} Re8 {[%emt 0:00:04]} 51. Kd5 {[%emt 0:00:04]} Rg8 {[%emt 0:00:02]} 52. e6 {[%emt 0:00:12]} g5 {[%emt 0:00:04]} 53. Rc6+ {[%emt 0:00:03]} Kd8 {[%emt 0:00:05]} 54. Rb6 {[%emt 0:00:06]} Kc7 {[%emt 0:00:07]} 55. Rxb5 {[%emt 0:00:09]} h5 {[%emt 0:00:09]} 56. Rc5+ {[%emt 0:00:02]} Kd8 {[%emt 0:00:02]} 57. Kd6 {[%emt 0:00:07]} Rg6 {[%emt 0:00:09]} 58. Rxc4 {[%emt 0:00:09]} g4 {[%emt 0:00:02]} 59. Ke5 {[%emt 0:00:20]} g3 {[%emt 0:00:07]} 60. Rd4+ {[%emt 0:00:07]} Ke8 {[%emt 0:00:04]} 61. Kd6 {[%emt 0:00:04]} g2 {[%emt 0:00:02]} 62. Rb4 {[%emt 0:00:02]} Kf8 {[%emt 0:00:11]} 63. Rb8+ {[%emt 0:00:04]} Kg7 {[%emt 0:00:01]} 64. Kd7 {[%emt 0:00:06]} g1=Q {[%emt 0:00:02]} 65. e7 {[%emt 0:00:03]} Qd1+ {[%emt 0:00:04]} 66. Ke8 {[%emt 0:00:07]} Qd6 {[%emt 0:00:06]} 67. Rd8 {[%emt 0:00:07]} Qc6+ {[%emt 0:00:03]} 68. Rd7 {[%emt 0:00:03]} Rd6 {[%emt 0:00:05]} 69. Kd8 {[%emt 0:00:10]} Rxd7+ {[%emt 0:00:02]} 70. Ke8 {[%emt 0:00:03]} Rd6# {[%emt 0:00:08]} 0-1

[Event "3rd FIDE WCCC Rapid G10 2019"]
[Site "Minsk"]
[Date "2019.08.16"]
[Round "1.3"]
[White "Smietanska, Wiktoria"]
[Black "Tabermakova, Leila"]
[Result "1-0"]
[ECO "A27"]
[WhiteElo "1594"]
[BlackElo "1136"]
[Annotator "NA"]
[PlyCount "75"]
[EventDate "2019.08.16"]
[EventType "swiss"]
[EventCountry "BLR"]
[SourceTitle "playchess.com"]
[Source "ChessBase"]
[SourceQuality "1"]
[TimeControl "600+5"]

1. c4 {[%emt 0:00:00]} e5 {[%emt 0:00:00]} 2. Nc3 {[%emt 0:00:00]} Nc6 {[%emt 0:00:00]} 3. Nf3 {[%emt 0:00:00]} f5 {[%emt 0:00:01]} 4. g3 {[%emt 0:00:04]} Nf6 {[%emt 0:00:03]} 5. Bg2 {[%emt 0:00:03]} g6 {[%emt 0:00:02]} 6. d3 {[%emt 0:00:57]} Bg7 {[%emt 0:00:04]} 7. Rb1 {[%emt 0:00:37]} a5 {[%emt 0:00:16]} 8. a3 {[%emt 0:00:23]} O-O {[%emt 0:00:19]} 9. O-O {[%emt 0:01:21]} d6 {[%emt 0:00:06]} 10. b4 {[%emt 0:00:24]} axb4 {[%emt 0:00:05]} 11. axb4 {[%emt 0:00:06]} Qe8 {[%emt 0:00:11]} 12. b5 {[%emt 0:00:36]} Ne7 {[%emt 0:00:22]} 13. Bb2 {[%emt 0:00:22]} h6 {[%emt 0:00:13]} 14. Qb3 {[%emt 0:00:25]} Kh8 15. Ra1 {[%emt 0:00:07]} Rxa1 {[%emt 0:00:30]} 16. Rxa1 {[%emt 0:00:01]} g5 {[%emt 0:00:15]} 17. Ra7 {[%emt 0:00:36]} c6 {[%emt 0:01:36]} 18. bxc6 {[%emt 0:00:23]} bxc6 {[%emt 0:00:35]} 19. Ba3 {[%emt 0:00:21]} Qd8 {[%emt 0:00:54]} 20. Nxe5 {[%emt 0:00:30]} c5 {[%emt 0:01:13]} 21. Rxe7 {[%emt 0:00:30]} Qxe7 {[%emt 0:00:07]} 22. Ng6+ {[%emt 0:00:00]} Kh7 {[%emt 0:00:17]} 23. Nxe7 {[%emt 0:00:00]} Be6 {[%emt 0:00:11]} 24. Ned5 {[%emt 0:00:00]} Nxd5 {[%emt 0:00:13]} 25. Bxd5 {[%emt 0:00:00]} Bxd5 {[%emt 0:00:10]} 26. Nxd5 {[%emt 0:00:00]} f4 {[%emt 0:00:25]} 27. Qb6 {[%emt 0:00:00]} fxg3 {[%emt 0:00:32]} 28. hxg3 {[%emt 0:00:00]} Bd4 {[%emt 0:00:21]} 29. e3 {[%emt 0:00:00]} Be5 {[%emt 0:00:02]} 30. Qc7+ {[%emt 0:00:00]} Kh8 {[%emt 0:00:07]} 31. Bxc5 {[%emt 0:00:00]} Ra8 {[%emt 0:00:37]} 32. Bxd6 {[%emt 0:00:00]} Ra1+ {[%emt 0:00:08]} 33. Kg2 {[%emt 0:00:00]} Bxd6 {[%emt 0:00:14]} 34. Qxd6 {[%emt 0:00:00]} Kh7 {[%emt 0:00:13]} 35. Qe7+ {[%emt 0:00:00]} Kg6 {[%emt 0:00:10]} 36. Qf6+ {[%emt 0:00:00]} Kh5 {[%emt 0:00:11]} 37. Qf7+ {[%emt 0:00:00]} Kg4 {[%emt 0:00:05]} 38. Qf3# 1-0

[Event "3rd FIDE WCCC Rapid G10 2019"]
[Site "Minsk"]
[Date "2019.08.16"]
[Round "1.4"]
[White "Karpenkava, Palina"]
[Black "Fedorova, Olesya"]
[Result "0-1"]
[ECO "A45"]
[WhiteElo "1140"]
[BlackElo "1578"]
[Annotator "NA"]
[PlyCount "128"]
[EventDate "2019.08.16"]
[EventType "swiss"]
[EventCountry "BLR"]
[SourceTitle "playchess.com"]
[Source "ChessBase"]
[SourceQuality "1"]
[TimeControl "600+5"]

1. d4 {[%emt 0:00:00]} Nf6 {[%emt 0:00:00]} 2. Bg5 {[%emt 0:00:00]} c5 {[%emt 0:00:03]} 3. c3 {[%emt 0:00:09]} Qb6 {[%emt 0:00:23]} 4. Qc2 {[%emt 0:00:52]} cxd4 {[%emt 0:00:11]} 5. cxd4 {[%emt 0:00:02]} Nc6 {[%emt 0:00:05]} 6. e3 {[%emt 0:00:13]} Qa5+ {[%emt 0:00:13]} 7. Qd2 {[%emt 0:00:42]} Qxg5 {[%emt 0:00:04]} 8. Nf3 {[%emt 0:00:05]} Qa5 {[%emt 0:00:14]} 9. Nc3 {[%emt 0:00:05]} g6 {[%emt 0:00:07]} 10. Be2 {[%emt 0:00:17]} Bg7 {[%emt 0:00:02]} 11. O-O {[%emt 0:00:08]} O-O {[%emt 0:00:02]} 12. Rfe1 {[%emt 0:00:42]} d5 {[%emt 0:00:18]} 13. Rac1 {[%emt 0:00:38]} Bg4 {[%emt 0:00:15]} 14. a3 {[%emt 0:01:10]} Bxf3 {[%emt 0:00:31]} 15. Bxf3 {[%emt 0:00:02]} e6 {[%emt 0:00:02]} 16. Red1 {[%emt 0:00:28]} Rac8 {[%emt 0:00:20]} 17. h3 {[%emt 0:00:39]} a6 {[%emt 0:00:45]} 18. Rc2 {[%emt 0:00:32]} b5 {[%emt 0:00:50]} 19. Rdc1 {[%emt 0:00:12]} Qb6 {[%emt 0:00:19]} 20. Na2 {[%emt 0:01:04]} Qb7 {[%emt 0:00:25]} 21. Be2 {[%emt 0:00:49]} Ne4 {[%emt 0:00:29]} 22. Qe1 {[%emt 0:00:11]} Na7 {[%emt 0:01:10]} 23. Rxc8 {[%emt 0:00:38]} Rxc8 {[%emt 0:00:03]} 24. Nb4 {[%emt 0:00:29]} Bf8 {[%emt 0:00:45]} 25. Nd3 {[%emt 0:00:04]} Rxc1 {[%emt 0:00:14]} 26. Qxc1 {[%emt 0:00:03]} Qc6 {[%emt 0:00:01]} 27. Qd1 {[%emt 0:00:23]} Bd6 {[%emt 0:00:31]} 28. f3 {[%emt 0:00:39]} Ng3 {[%emt 0:00:19]} 29. Kf2 {[%emt 0:00:07]} Nxe2 {[%emt 0:00:09]} 30. Kxe2 {[%emt 0:00:03]} Kf8 {[%emt 0:00:23]} 31. Nf2 {[%emt 0:00:23]} Qc4+ {[%emt 0:00:17]} 32. Qd3 {[%emt 0:00:01]} Ke7 {[%emt 0:00:16]} 33. Ng4 {[%emt 0:00:03]} h5 {[%emt 0:00:07]} 34. Nf2 {[%emt 0:00:07]} Nc6 {[%emt 0:00:30]} 35. Kd2 {[%emt 0:00:03]} Qxd3+ {[%emt 0:00:03]} 36. Kxd3 {[%emt 0:00:01]} Na5 {[%emt 0:00:06]} 37. Nd1 {[%emt 0:00:06]} Nc4 {[%emt 0:00:05]} 38. g4 {[%emt 0:00:14]} hxg4 {[%emt 0:00:04]} 39. hxg4 {[%emt 0:00:01]} a5 {[%emt 0:00:09]} 40. b3 {[%emt 0:00:25]} Nxa3 {[%emt 0:00:09]} 41. Kc3 {[%emt 0:00:04]} b4+ {[%emt 0:00:10]} 42. Kb2 {[%emt 0:00:01]} Nb5 {[%emt 0:00:02]} 43. Nf2 {[%emt 0:00:04]} Bg3 {[%emt 0:00:21]} 44. Nd3 {[%emt 0:00:00]} Nc3 {[%emt 0:00:19]} 45. Kc2 {[%emt 0:00:05]} Kd6 {[%emt 0:00:10]} 46. Nc5 {[%emt 0:00:08]} Kc6 {[%emt 0:00:11]} 47. Nd3 {[%emt 0:00:06]} Bd6 {[%emt 0:00:11]} 48. Kd2 {[%emt 0:00:09]} Kb5 {[%emt 0:00:03]} 49. Kc2 {[%emt 0:00:01]} a4 {[%emt 0:00:05]} 50. bxa4+ {[%emt 0:00:02]} Kxa4 {[%emt 0:00:04]} 51. Nb2+ {[%emt 0:00:05]} Ka3 {[%emt 0:00:07]} 52. Nd3 Na4 {[%emt 0:00:29]} 53. f4 {[%emt 0:00:11]} b3+ {[%emt 0:00:08]} 54. Kb1 Nc3+ {[%emt 0:00:06]} 55. Kc1 {[%emt 0:00:04]} Ka2 {[%emt 0:00:13]} 56. g5 {[%emt 0:00:03]} b2+ {[%emt 0:00:14]} 57. Nxb2 {[%emt 0:00:10]} Ba3 {[%emt 0:00:01]} 58. Kc2 {[%emt 0:00:01]} Bxb2 {[%emt 0:00:01]} 59. Kd3 {[%emt 0:00:03]} Kb3 {[%emt 0:00:02]} 60. Kd2 {[%emt 0:00:03]} Kc4 {[%emt 0:00:03]} 61. Kc2 {[%emt 0:00:04]} Ba3 {[%emt 0:00:02]} 62. Kd2 {[%emt 0:00:01]} Ne4+ {[%emt 0:00:02]} 63. Ke2 {[%emt 0:00:02]} Kc3 64. Kf3 {[%emt 0:00:10]} Kd3 {[%emt 0:00:04]} 0-1

[Event "3rd FIDE WCCC Rapid G10 2019"]
[Site "Minsk"]
[Date "2019.08.16"]
[Round "1.5"]
[White "Nurgaliyeva, Zarina"]
[Black "Prochaieva, Yelyzaveta"]
[Result "1-0"]
[ECO "B01"]
[WhiteElo "1474"]
[BlackElo "1145"]
[Annotator "NA"]
[PlyCount "81"]
[EventDate "2019.08.16"]
[EventType "swiss"]
[EventCountry "BLR"]
[SourceTitle "playchess.com"]
[Source "ChessBase"]
[SourceQuality "1"]
[TimeControl "600+5"]

1. e4 {[%emt 0:00:00]} d5 {[%emt 0:00:00]} 2. exd5 {[%emt 0:00:00]} Qxd5 {[%emt 0:00:00]} 3. Nc3 {[%emt 0:00:00]} Qd6 {[%emt 0:00:00]} 4. d4 {[%emt 0:00:02]} g6 {[%emt 0:00:01]} 5. Nb5 {[%emt 0:00:04]} Qd8 {[%emt 0:00:02]} 6. c4 {[%emt 0:00:09]} Bg7 {[%emt 0:00:04]} 7. Nf3 {[%emt 0:00:20]} Nf6 {[%emt 0:00:07]} 8. Bf4 {[%emt 0:00:28]} Na6 {[%emt 0:00:32]} 9. Be2 {[%emt 0:00:20]} O-O {[%emt 0:00:05]} 10. O-O {[%emt 0:00:17]} b6 {[%emt 0:00:05]} 11. Ne5 {[%emt 0:00:52]} Bb7 {[%emt 0:00:25]} 12. Bf3 {[%emt 0:00:04]} Qc8 {[%emt 0:02:14]} 13. Nc6 {[%emt 0:00:50]} Re8 {[%emt 0:00:55]} 14. Ncxa7 {[%emt 0:00:58]} Qb8 {[%emt 0:01:23]} 15. Nc6 {[%emt 0:00:04]} Qc8 {[%emt 0:00:12]} 16. Re1 {[%emt 0:00:14]} e6 {[%emt 0:00:12]} 17. Qd2 {[%emt 0:01:00]} Qd7 {[%emt 0:02:40]} 18. Ne7+ {[%emt 0:00:12]} Rxe7 {[%emt 0:00:21]} 19. Bxb7 {[%emt 0:00:02]} Rb8 {[%emt 0:00:19]} 20. Bxa6 {[%emt 0:00:02]} Rd8 {[%emt 0:00:42]} 21. Bxc7 {[%emt 0:00:14]} Rde8 {[%emt 0:00:22]} 22. Bd6 {[%emt 0:00:03]} e5 {[%emt 0:00:11]} 23. Bxe7 {[%emt 0:00:05]} Rxe7 {[%emt 0:00:11]} 24. Rad1 {[%emt 0:00:17]} exd4 {[%emt 0:00:15]} 25. Rxe7 {[%emt 0:00:05]} Qxe7 {[%emt 0:00:09]} 26. Qxd4 {[%emt 0:00:06]} Ne8 {[%emt 0:00:25]} 27. Qd8 {[%emt 0:00:05]} Qxd8 {[%emt 0:00:04]} 28. Rxd8 {[%emt 0:00:03]} Kf8 {[%emt 0:00:01]} 29. Nc7 {[%emt 0:00:03]} f6 {[%emt 0:00:07]} 30. Nxe8 {[%emt 0:00:06]} Bh6 {[%emt 0:00:06]} 31. Nxf6+ {[%emt 0:00:10]} Kg7 {[%emt 0:00:08]} 32. Nd5 {[%emt 0:00:05]} Kf7 {[%emt 0:00:07]} 33. Nxb6 {[%emt 0:00:02]} Ke7 {[%emt 0:00:03]} 34. Rd1 {[%emt 0:00:03]} Ke6 {[%emt 0:00:04]} 35. c5 {[%emt 0:00:01]} Bg5 {[%emt 0:00:04]} 36. g3 {[%emt 0:00:08]} Ke7 {[%emt 0:00:04]} 37. c6 {[%emt 0:00:02]} Ke6 {[%emt 0:00:07]} 38. c7 {[%emt 0:00:02]} Ke5 {[%emt 0:00:05]} 39. c8=Q {[%emt 0:00:03]} Ke4 {[%emt 0:00:05]} 40. Qe6+ {[%emt 0:00:10]} Kf3 {[%emt 0:00:04]} 41. Bb7# {[%emt 0:00:05]} 1-0

[Event "3rd FIDE WCCC Rapid G10 2019"]
[Site "Minsk"]
[Date "2019.08.16"]
[Round "1.6"]
[White "Krotava, Viktoryia"]
[Black "Efimova, Darya"]
[Result "0-1"]
[ECO "D00"]
[WhiteElo "1144"]
[BlackElo "1385"]
[Annotator "NA"]
[PlyCount "150"]
[EventDate "2019.08.16"]
[EventType "swiss"]
[EventCountry "BLR"]
[SourceTitle "playchess.com"]
[Source "ChessBase"]
[SourceQuality "1"]
[TimeControl "600+5"]

1. d4 {[%emt 0:00:00]} d5 {[%emt 0:00:00]} 2. Bg5 {[%emt 0:00:00]} h6 {[%emt 0:00:00]} 3. Bf4 {[%emt 0:00:01]} c5 {[%emt 0:00:01]} 4. e3 {[%emt 0:00:02]} Nc6 {[%emt 0:00:01]} 5. c3 {[%emt 0:00:05]} Bf5 {[%emt 0:00:02]} 6. Bd3 {[%emt 0:00:06]} Qd7 {[%emt 0:00:07]} 7. Nf3 {[%emt 0:00:09]} Nf6 {[%emt 0:00:03]} 8. O-O {[%emt 0:00:09]} Ne4 {[%emt 0:00:01]} 9. Bxe4 {[%emt 0:00:06]} Bxe4 {[%emt 0:00:03]} 10. Nbd2 {[%emt 0:00:06]} Bh7 {[%emt 0:00:10]} 11. Qb3 {[%emt 0:00:17]} e6 {[%emt 0:00:08]} 12. a4 {[%emt 0:00:36]} Be7 {[%emt 0:00:21]} 13. Qd1 {[%emt 0:00:22]} O-O {[%emt 0:00:05]} 14. Ne5 {[%emt 0:00:13]} Nxe5 {[%emt 0:00:05]} 15. Bxe5 {[%emt 0:00:01]} f5 {[%emt 0:02:41]} 16. Qf3 {[%emt 0:00:19]} c4 {[%emt 0:00:30]} 17. Qg3 {[%emt 0:00:18]} Bf6 {[%emt 0:00:03]} 18. Bf4 {[%emt 0:00:02]} Kh8 {[%emt 0:02:40]} 19. Nf3 {[%emt 0:00:25]} Rf7 {[%emt 0:01:21]} 20. Be5 {[%emt 0:00:26]} Raf8 {[%emt 0:00:26]} 21. Bf4 {[%emt 0:00:34]} Qd8 {[%emt 0:00:33]} 22. Ra3 {[%emt 0:00:26]} g5 {[%emt 0:00:37]} 23. Be5 {[%emt 0:00:23]} Rg7 {[%emt 0:00:17]} 24. Nd2 {[%emt 0:01:06]} Bxe5 {[%emt 0:00:49]} 25. Qxe5 {[%emt 0:00:21]} Qe7 {[%emt 0:00:23]} 26. Raa1 {[%emt 0:00:44]} f4 {[%emt 0:00:03]} 27. b3 {[%emt 0:00:15]} cxb3 {[%emt 0:00:09]} 28. Nxb3 {[%emt 0:00:04]} f3 {[%emt 0:00:02]} 29. g3 {[%emt 0:01:11]} Qf7 {[%emt 0:00:14]} 30. Nc5 {[%emt 0:00:53]} Re8 {[%emt 0:00:02]} 31. Rab1 {[%emt 0:00:36]} b6 {[%emt 0:00:02]} 32. Nd3 {[%emt 0:00:29]} Bxd3 {[%emt 0:00:02]} 33. Rfd1 {[%emt 0:00:28]} Bxb1 {[%emt 0:00:09]} 34. Rxb1 {[%emt 0:00:01]} Qh5 {[%emt 0:00:02]} 35. Kh1 {[%emt 0:00:02]} Qh3 {[%emt 0:00:05]} 36. Rg1 {[%emt 0:00:02]} Qf5 {[%emt 0:00:01]} 37. Qd6 {[%emt 0:00:17]} h5 {[%emt 0:00:10]} 38. Qc6 {[%emt 0:00:07]} Reg8 {[%emt 0:00:06]} 39. c4 {[%emt 0:00:27]} dxc4 {[%emt 0:00:06]} 40. Qxc4 {[%emt 0:00:02]} Qd5 {[%emt 0:00:06]} 41. Qd3 {[%emt 0:00:11]} h4 {[%emt 0:00:08]} 42. Qd1 {[%emt 0:00:02]} hxg3 {[%emt 0:00:03]} 43. Rxg3 {[%emt 0:00:04]} g4 {[%emt 0:00:10]} 44. Qc2 {[%emt 0:00:26]} Qf5 {[%emt 0:00:09]} 45. Qxf5 {[%emt 0:00:14]} exf5 {[%emt 0:00:01]} 46. Kg1 {[%emt 0:00:14]} Rc8 {[%emt 0:00:04]} 47. Kh1 {[%emt 0:00:05]} Rc1+ {[%emt 0:00:01]} 48. Rg1 {[%emt 0:00:01]} Rxg1+ {[%emt 0:00:02]} 49. Kxg1 {[%emt 0:00:00]} Rc7 {[%emt 0:00:01]} 50. h4 {[%emt 0:00:05]} gxh3 {[%emt 0:00:03]} 51. Kh2 {[%emt 0:00:03]} Rc2 {[%emt 0:00:01]} 52. Kxh3 {[%emt 0:00:04]} Rxf2 {[%emt 0:00:01]} 53. Kg3 {[%emt 0:00:01]} Ra2 {[%emt 0:00:02]} 54. Kxf3 {[%emt 0:00:03]} Rxa4 {[%emt 0:00:01]} 55. Kf4 {[%emt 0:00:01]} Ra5 {[%emt 0:00:01]} 56. e4 {[%emt 0:00:09]} fxe4 {[%emt 0:00:02]} 57. Kxe4 {[%emt 0:00:00]} Rb5 {[%emt 0:00:05]} 58. Kd3 {[%emt 0:00:02]} a5 {[%emt 0:00:00]} 59. Kc4 {[%emt 0:00:05]} Rb4+ {[%emt 0:00:02]} 60. Kc3 {[%emt 0:00:02]} Kg7 {[%emt 0:00:02]} 61. d5 {[%emt 0:00:06]} Kf6 {[%emt 0:00:02]} 62. d6 {[%emt 0:00:06]} Ke6 {[%emt 0:00:00]} 63. d7 Kxd7 {[%emt 0:00:01]} 64. Kc2 {[%emt 0:00:04]} a4 {[%emt 0:00:02]} 65. Kc3 {[%emt 0:00:04]} a3 {[%emt 0:00:04]} 66. Kxb4 {[%emt 0:00:02]} a2 {[%emt 0:00:01]} 67. Kb3 {[%emt 0:00:02]} a1=Q {[%emt 0:00:02]} 68. Kb4 {[%emt 0:00:01]} Qb2+ {[%emt 0:00:01]} 69. Kc4 {[%emt 0:00:02]} b5+ {[%emt 0:00:02]} 70. Kd3 {[%emt 0:00:02]} b4 {[%emt 0:00:01]} 71. Kc4 {[%emt 0:00:02]} Qc3+ {[%emt 0:00:02]} 72. Kb5 {[%emt 0:00:02]} b3 {[%emt 0:00:01]} 73. Ka6 {[%emt 0:00:02]} b2 {[%emt 0:00:01]} 74. Ka7 {[%emt 0:00:02]} b1=Q {[%emt 0:00:08]} 75. Ka8 {[%emt 0:00:03]} Qa3# 0-1